fUSD/lending_fUSD_20240523
["ID","MTS","AMOUNT","RATE_DAILY","PERIOD"]
[327751690,1716426707104,-500.0,0.00023835,2]
[327751691,1716426707114,-500.0,0.00023835,2]
[327751692,1716426707124,-3529.96,0.00023835,2]
[327751693,1716426707135,-500.0,0.00023835,2]
[327751694,1716426707144,-500.0,0.00023835,2]
[327751695,1716426707154,-500.0,0.00023835,2]
[327751696,1716426707163,-524.88,0.00023835,2]
[327751697,1716426707175,-500.0,0.00023835,2]
[327751698,1716426707184,-572.02,0.00023835,2]
[327751699,1716426707194,-1185.63,0.00023835,2]
[327751700,1716426707204,-500.0,0.00023835,2]
[327751701,1716426707216,-1072.65,0.00023835,2]
[327751702,1716426707226,-500.0,0.00023835,2]
[327751703,1716426707237,-2912.02,0.00023835,2]
[327751704,1716426707247,-500.0,0.00023835,2]
[327751705,1716426707256,-500.0,0.00023835,2]
[327751706,1716426707266,-500.0,0.00023835,2]
[327751707,1716426707275,-1275.89,0.00023835,2]
[327751708,1716426707285,-500.0,0.00023835,2]
[327751709,1716426707294,-235.67604003,0.00023835,2]
[327751710,1716426707305,-500.0,0.00023835,2]
[327751711,1716426707315,-500.0,0.00023835,2]
[327751712,1716426707325,-2786.57,0.00023835,2]
[327751713,1716426707336,-500.0,0.00023835,2]
[327751714,1716426707345,-991.14,0.00023835,2]
[327751715,1716426707355,-500.0,0.00023835,2]
[327751716,1716426707366,-500.0,0.00023835,2]
[327751717,1716426707376,-500.0,0.00023835,2]
[327751718,1716426707385,-992.65,0.00023835,2]
[327751719,1716426707395,-500.0,0.00023835,2]
[327751720,1716426707406,-823.09,0.00023835,2]
[327751721,1716426707416,-500.0,0.00023835,2]
[327751722,1716426707426,-945.3,0.00023835,2]
[327751723,1716426707435,-1118.48,0.00023835,2]
[327751724,1716426707445,-500.0,0.00023835,2]
[327751725,1716426707455,-1735.83,0.00023835,2]
[327751726,1716426707464,-847.5,0.00023835,2]
[327751727,1716426707473,-581.15,0.00023835,2]
[327751728,1716426707482,-500.0,0.00023835,2]
[327751729,1716426707492,-500.0,0.00023835,2]
[327751730,1716426707502,-500.0,0.00023835,2]
[327751731,1716426707512,-1281.74,0.00023835,2]
[327751732,1716426707521,-500.0,0.00023835,2]
[327751733,1716426707530,-1159.16,0.00023835,2]
[327751734,1716426707540,-1543.8,0.00023835,2]
[327751735,1716426707550,-500.0,0.00023835,2]
[327751736,1716426707559,-500.0,0.00023835,2]
[327751737,1716426707569,-500.0,0.00023835,2]
[327751738,1716426707578,-500.0,0.00023835,2]
[327751739,1716426707587,-1455.98,0.00023835,2]
[327751740,1716426707596,-1060.7,0.00023835,2]
[327751741,1716426707606,-1182.68,0.00023835,2]
[327751742,1716426707616,-500.0,0.00023835,2]
[327751743,1716426707625,-816.83,0.00023835,2]
[327751744,1716426707635,-602.45930695,0.00023835,2]
[327751745,1716426707648,-500.0,0.00023835,2]
[327751746,1716426707658,-500.0,0.00023835,2]
[327751747,1716426707667,-1209.43,0.00023835,2]
[327751748,1716426707677,-500.0,0.00023835,2]
[327751749,1716426707686,-500.0,0.00023835,2]
[327751750,1716426707696,-730.73,0.00023835,2]
[327751751,1716426707706,-1071.08,0.00023835,2]
[327751752,1716426707715,-950.7,0.00023835,2]
[327751753,1716426707725,-500.0,0.00023835,2]
[327751754,1716426707735,-1755.43,0.00023835,2]
[327751755,1716426707744,-500.0,0.00023835,2]
[327751756,1716426707757,-977.89,0.00023835,2]
[327751757,1716426707767,-500.0,0.00023835,2]
[327751758,1716426707777,-500.0,0.00023835,2]
[327751759,1716426707787,-500.0,0.00023835,2]
[327751760,1716426707797,-990.31,0.00023835,2]
[327751761,1716426707806,-500.0,0.00023835,2]
[327751762,1716426707815,-973.33,0.00023835,2]
[327751763,1716426707825,-974.99,0.00023835,2]
[327751764,1716426707836,-500.0,0.00023835,2]
[327751765,1716426707847,-500.0,0.00023835,2]
[327751766,1716426707856,-765.17,0.00023835,2]
[327751767,1716426707865,-3405.53,0.00023835,2]
[327751768,1716426707875,-1323.69,0.00023835,2]
[327751769,1716426707886,-500.0,0.00023835,2]
[327751770,1716426707897,-500.0,0.00023835,2]
[327751771,1716426707907,-1486.42,0.00023835,2]
[327751772,1716426707916,-500.0,0.00023835,2]
[327751773,1716426707926,-760.0,0.00023846,2]
[327751774,1716426707935,-5800.0,0.00023875,2]
[327751775,1716426707945,-5800.0,0.00023875,2]
[327751776,1716426707957,-16000.0,0.00023882,2]
[327751777,1716426707966,-5800.0,0.00023883,2]
[327751778,1716426707975,-5800.0,0.00023883,2]
[327751779,1716426707985,-4000.7608433,0.00023884,2]
[327751780,1716426707995,-50160.10985,0.00023884,2]
[327751781,1716426708005,-10156.3018721,0.00023884,2]
[327751782,1716426708014,-58000.0,0.00023891,2]
[327751783,1716426708031,-16000.0,0.00023891,2]
[327751784,1716426708053,-5800.0,0.00023892,2]
[327751785,1716426708070,-5800.0,0.00023892,2]
[327751786,1716426708092,-378.0,0.000239,2]
[327751787,1716426708114,-693.95630806,0.000239,2]
[327751788,1716426708133,-27498.95018915,0.000239,2]
[327751789,1716426708155,-5800.0,0.000239,2]
[327751790,1716426708171,-5800.0,0.000239,2]
[327751791,1716426708188,-160.0,0.000239,2]
[327751792,1716426708209,-58000.0,0.000239,2]
[327751793,1716426708223,-16000.0,0.000239,2]
[327751794,1716426708240,-168.84711421,0.000239,2]
[327751795,1716426708256,-5800.0,0.000239,2]
[327751796,1716426708273,-6864.26896502,0.000239,2]
[327751797,1716426708288,-5139.51218112,0.000239,2]
[327751798,1716426708305,-219.53334895,0.000239,2]
[327751799,1716426708320,-11179.7505019,0.00023968,2]
[327751800,1716426708336,-1100.0,0.00023972,2]
[327751801,1716426708352,-900.0,0.00023972,2]
[327751802,1716426708367,-9268.96058,0.00023984,2]
[327751803,1716426708383,-7358.1706581,0.00023984,2]
[327751804,1716426708400,-3321.2265993,0.00023984,2]
[327751805,1716426708414,-2641.6923552,0.00023984,2]
[327751806,1716426708430,-41658.1934294,0.00023984,2]
[327751807,1716426708446,-33156.2770088,0.00023984,2]
[327751808,1716426708462,-8434.8536951,0.00023984,2]
[327751809,1716426708478,-6713.4055181,0.00023984,2]
[327751810,1716426708493,-150.0,0.00023989,2]
[327751811,1716426708509,-103401.48051391,0.0002399,2]
[327751812,1716426708523,-160.84527705,0.00023998,2]
[327751813,1716426708539,-894.23746367,0.00023998,2]
[327751814,1716426708554,-151.0,0.00023999,2]
[327751815,1716426708569,-235.08203238,0.00023999,2]
[327751816,1716426708585,-220534.30104142,0.00023999,2]
[327751817,1716426708599,-543281.6738114,0.00023999,2]
[327751818,1716426708615,-150.0,0.00023999,2]
[327751819,1716426708631,-150.0,0.00023999,2]
[327751820,1716426708647,-150.0,0.00023999,2]
[327751821,1716426708662,-150.0,0.00023999,2]
[327751822,1716426708676,-150.0,0.00023999,2]
[327751823,1716426708691,-150.0,0.00023999,2]
[327751824,1716426708708,-150.0,0.00023999,2]
[327751825,1716426708723,-2405667.59898628,0.00024,5]
[327751826,1716426710166,-500.0,0.00021917,2]
[327751827,1716426710176,-1625.24,0.00022191,2]
[327751828,1716426710185,-500.0,0.00022191,2]
[327751829,1716426710194,-500.0,0.00022191,2]
[327751830,1716426710203,-41.154969,0.00022465,2]
[327751831,1716426710385,-1584.085031,0.00022465,2]
[327751832,1716426710394,-500.0,0.00022465,2]
[327751833,1716426710405,-500.0,0.00022465,2]
[327751834,1716426710415,-1625.24,0.00022739,2]
[327751835,1716426710424,-500.0,0.00022739,2]
[327751836,1716426710434,-486.04625211,0.00022739,2]
[327751837,1716426710444,-5929.69774904,0.00022859,2]
[327751838,1716426710454,-1625.24,0.00023013,2]
[327751839,1716426710463,-500.0,0.00023013,2]
[327751840,1716426710473,-500.0,0.00023287,2]
[327751841,1716426710482,-1625.24,0.00023287,2]
[327751842,1716426710491,-500.0,0.00023287,2]
[327751843,1716426710501,-500.0,0.00023561,2]
[327751844,1716426710510,-1625.24,0.00023561,2]
[327751845,1716426710519,-500.0,0.00023561,2]
[327751846,1716426710529,-1000.0,0.00023835,2]
[327751847,1716426710538,-500.0,0.00023835,2]
[327751848,1716426710547,-500.0,0.00023835,2]
[327751849,1716426710556,-1625.24,0.00023835,2]
[327751850,1716426710565,-7445.99817507,0.00024,5]
[327751851,1716426710919,-150.0,0.00018247,2]
[327751852,1716426710930,-420.93,0.00019068,2]
[327751853,1716426710940,-351.98,0.00019562,2]
[327751854,1716426710950,-163.54,0.00019562,2]
[327751855,1716426710959,-150.0,0.0001989,2]
[327751856,1716426710968,-505.07811965,0.00021917,2]
[327751857,1716426710978,-500.0,0.00023835,2]
[327751858,1716426710988,-206262.47188035,0.00024,5]
[327751860,1716426770337,154.34,0.00021589,30]
[327751863,1716426932119,151.0,0.00024551,30]
[327751867,1716427263573,154.34,0.00021589,30]
[327751871,1716427731904,154.34,0.00021589,30]
[327751881,1716427832340,-155.5,0.00013973,2]
[327751883,1716427832350,-155.59,0.00013973,2]
[327751884,1716427832360,-155.98,0.00013973,2]
[327751885,1716427832369,-393.1399999,0.00015,2]
[327751886,1716427832381,-225.97818357,0.00015,2]
[327751887,1716427832391,-811.10477426,0.000165,2]
[327751888,1716427832402,-416.13153184,0.000165,2]
[327751889,1716427832412,-240.04,0.00017331,2]
[327751890,1716427832422,-1000.0,0.000178,2]
[327751891,1716427832431,-500.0,0.000178,2]
[327751892,1716427832441,-150.99,0.000179,2]
[327751893,1716427832450,-3430.33846816,0.000179,2]
[327751894,1716427832461,-1293.66153184,0.000179,2]
[327751895,1716427832471,-453.0,0.00018,2]
[327751896,1716427832480,-158.51579806,0.00018245,2]
[327751897,1716427832489,-341.31173646,0.00018246,2]
[327751898,1716427832499,-1643.0,0.0001895,2]
[327751899,1716427832508,-786.67187886,0.0001895,2]
[327751900,1716427832519,-316.5,0.0001895,2]
[327751901,1716427832618,-159.82812114,0.0001895,2]
[327751902,1716427832628,-1225.0,0.0001895,2]
[327751904,1716427832637,-613.0,0.0001895,2]
[327751906,1716427832646,-154.731,0.0001895,2]
[327751908,1716427832656,-358.332,0.0001895,2]
[327751910,1716427832665,-150.0,0.0001895,2]
[327751912,1716427832674,-215.0,0.0001895,2]
[327751914,1716427832683,-1649.0,0.0001895,2]
[327751916,1716427832693,-150.0,0.0001895,2]
[327751917,1716427832702,-1137.0,0.0001895,2]
[327751919,1716427832712,-1466.56226282,0.0001895,2]
[327751922,1716427832723,-427.34999358,0.0001895,2]
[327751924,1716427832734,-367.39999985,0.0001895,2]
[327751926,1716427832745,-490.0,0.0001895,2]
[327751928,1716427832757,-410.68774375,0.0001895,2]
[327751930,1716427832767,-12.34213625,0.0001895,2]
[327751932,1716427832779,-378.73,0.0001895,2]
[327751935,1716427832790,-5368.92786375,0.0001895,2]
[327751937,1716427832799,-11.86497481,0.0001895,2]
[327751943,1716427838558,-964.70802519,0.0001895,2]
[327751945,1716427838568,-2226.63397481,0.0001895,2]
[327751948,1716427839239,-2908.36602519,0.0001895,2]
[327751950,1716427839249,-289.0,0.0001895,2]
[327751952,1716427839259,-1401.0,0.0001895,2]
[327751954,1716427839268,-1167.0,0.0001895,2]
[327751956,1716427839278,-2162.0,0.0001895,2]
[327751958,1716427839287,-200.0,0.00019097,2]
[327751960,1716427839296,-779.66,0.0001911,2]
[327751962,1716427839306,-500.0,0.00019151,2]
[327751964,1716427839316,-250.0,0.0001925,2]
[327751966,1716427839325,-240.0,0.00019353,2]
[327751968,1716427839335,-952.0,0.000194,2]
[327751970,1716427839348,-240.04,0.00019595,2]
[327751972,1716427839357,-155.0,0.0002,2]
[327751974,1716427839366,-155.0,0.0002,2]
[327751976,1716427839375,-457.90189811,0.0002,2]
[327751978,1716427839385,-862.47163439,0.0002,2]
[327751980,1716427839394,-1773.97556298,0.0002,2]
[327751982,1716427839404,-1263.6100219,0.0002,2]
[327751984,1716427839413,-5186.20094472,0.0002048,2]
[327751986,1716427839423,-11046.34231626,0.00020481,2]
[327751987,1716427839432,-210.699,0.00020499,2]
[327751989,1716427839441,-5364.858,0.00020499,2]
[327751990,1716427839451,-150.0,0.000205,2]
[327751991,1716427839460,-155.61009004,0.0002051,2]
[327751992,1716427839470,-167.0,0.00020615,2]
[327751993,1716427839480,-717.9371715,0.00021,2]
[327751994,1716427839489,-2750.0,0.00021,2]
[327751995,1716427839498,-150.0,0.00021,2]
[327751996,1716427839507,-155.59,0.00021209,2]
[327751997,1716427839517,-167.0,0.00021296,2]
[327751998,1716427839526,-1000.0,0.00021434,2]
[327751999,1716427839535,-1271.4099,0.00021489,2]
[327752000,1716427839544,-150.0,0.000215,3]
[327752001,1716427839554,-1000.0,0.00021588,2]
[327752002,1716427839563,-1000.0,0.00021588,2]
[327752003,1716427839573,-1004.34760422,0.00021588,2]
[327752004,1716427839582,-13083.9500291,0.00021589,2]
[327752005,1716427839594,-500.0,0.00021589,2]
[327752006,1716427839603,-500.0,0.00021589,2]
[327752007,1716427839613,-1039.40241281,0.00021589,2]
[327752008,1716427839622,-1043.83643081,0.00021589,2]
[327752009,1716427839630,-1039.40241281,0.00021589,2]
[327752010,1716427839640,-200.0,0.00021589,2]
[327752011,1716427839649,-445.41817332,0.00021589,2]
[327752012,1716427839659,-1043.83643081,0.00021589,2]
[327752013,1716427839668,-3285.55754301,0.00021589,2]
[327752095,1716427843544,-1027.16466561,0.0002,2]
[327752097,1716427843557,-5213.63004394,0.0002,2]
[327752098,1716427843568,-1227.44081654,0.00021588,2]
[327752099,1716427843578,-1662.81201126,0.00021589,2]
[327752100,1716427843590,-812.2800005,0.00021589,2]
[327752102,1716427843606,-284.99716014,0.00021589,2]
[327752113,1716427846483,-1466.0,0.00018709,2]
[327752114,1716427846493,-37904.0,0.00018709,2]
[327752115,1716427846503,-31435.95766808,0.00021589,2]
[327752116,1716427846512,-1039.40241281,0.00021589,2]
[327752117,1716427846522,-445.41817332,0.00021589,2]
[327752118,1716427846532,-5110.11713898,0.00021589,2]
[327752120,1716428024099,12050.0,0.00013,2]
[327752123,1716428263418,-1610.79491403,0.000129,2]
[327752124,1716428265736,154.34,0.00021589,30]
[327752125,1716428294178,-67139.20508597,0.00013,2]
[327752128,1716428448749,162461.70287476,0.00031,120]
[327752131,1716428546959,2081.73,0.00028,30]
[327752143,1716428733406,199.76648438,0.00031,120]
[327752144,1716428769110,3440.68430119,0.00031,120]
[327752145,1716428774640,154.34,0.00021589,30]
[327752151,1716429032556,-150.0,0.00012899,2]
[327752152,1716429032565,-6594.6491846,0.000129,2]
[327752171,1716429038665,-832.3116154,0.000129,2]
[327752172,1716429038675,-181.36313278,0.000129,2]
[327752173,1716429038684,-155.53691219,0.000129,2]
[327752174,1716429038694,-172.14722884,0.000129,2]
[327752175,1716429038704,-417.2099,0.000129,2]
[327752176,1716429038713,-275.65687269,0.000129,2]
[327752177,1716429038722,-10377.9679,0.000129,2]
[327752178,1716429038732,-17591.70476061,0.00012989,2]
[327752179,1716429038741,-184.43165041,0.0001299,2]
[327752180,1716429038751,-43441.45476405,0.00012999,2]
[327752181,1716429038760,-2089738.61112573,0.00013,2]
[327752182,1716429038769,-226218.75595332,0.00013,2]
[327752183,1716429038779,-155.53691218,0.00013143,2]
[327752184,1716429038788,-155.53691218,0.00013387,2]
[327752185,1716429038797,-155.53691218,0.0001363,2]
[327752186,1716429038806,-155.53691218,0.00013873,2]
[327752187,1716429038815,-241.29,0.00013973,2]
[327752188,1716429038824,-161.27,0.00013973,2]
[327752189,1716429038834,-499.99,0.00013973,2]
[327752190,1716429038843,-216.03,0.00014147,2]
[327752191,1716429038852,-619.11818347,0.00015,2]
[327752192,1716429038861,-150.99,0.00015,2]
[327752193,1716429038870,-250.0,0.0001599,2]
[327752195,1716429038880,-150.0,0.000162,2]
[327752197,1716429038888,-150.0,0.00016306,2]
[327752199,1716429038898,-216.03,0.00016411,2]
[327752201,1716429038907,-150.0,0.00016412,2]
[327752202,1716429038920,-1227.44081654,0.000165,2]
[327752203,1716429038930,-150.0,0.00016518,2]
[327752204,1716429038939,-150.0,0.00016624,2]
[327752205,1716429038948,-150.0,0.00016729,2]
[327752206,1716429038958,-500.0,0.00016749,2]
[327752207,1716429038967,-150.0,0.00016835,2]
[327752208,1716429038976,-230.42,0.00016864,2]
[327752209,1716429038986,-761.6,0.00016865,2]
[327752210,1716429039050,-150.0,0.00016941,2]
[327752211,1716429039059,-200.0,0.0001697,2]
[327752212,1716429039069,-150.0,0.00017047,2]
[327752213,1716429039077,-519.1,0.00017077,2]
[327752214,1716429039087,-150.0,0.00017153,2]
[327752215,1716429039095,-150.0,0.00017259,2]
[327752216,1716429039104,-150.0,0.00017365,2]
[327752217,1716429039113,-150.0,0.00017471,2]
[327752218,1716429039123,-150.0,0.00017576,2]
[327752219,1716429039132,-150.0,0.00017682,2]
[327752220,1716429039141,-150.0,0.00017788,2]
[327752221,1716429039151,-776.0,0.000178,2]
[327752222,1716429039160,-150.0,0.00017894,2]
[327752223,1716429039170,-166.50553877,0.000179,2]
[327752224,1716429039180,-4580.0,0.000179,2]
[327752225,1716429039190,-821.06291829,0.000179,2]
[327752226,1716429039199,-5647.87856341,0.000179,2]
[327752227,1716429039208,-150.0,0.00017999,2]
[327752228,1716429039217,-150.0,0.00017999,2]
[327752229,1716429039227,-263.19676114,0.00018,2]
[327752230,1716429039236,-830671.70964919,0.00018,2]
[327752231,1716429039251,-69617.00000005,0.00018,2]
[327752249,1716429043846,-1663.64421668,0.00018,2]
[327752254,1716429044850,-3345.10263904,0.00018,2]
[327752258,1716429044863,-529.73289344,0.00018,2]
[327752261,1716429044875,-34404.98572738,0.00018,2]
[327752262,1716429044887,-16683.54046808,0.00018,2]
[327752263,1716429044899,-2872.62014596,0.00018,2]
[327752282,1716429046797,-5768.02185682,0.00018,2]
[327752283,1716429049299,-5385.04807521,0.00018,2]
[327752284,1716429049311,-392.08287098,0.00018,2]
[327752365,1716429111593,173.05231,0.00031,120]
[327752366,1716429113013,173.05231,0.00031,120]
[327752367,1716429114350,173.05231,0.00031,120]
[327752374,1716429126012,243.05231,0.00031,120]
[327752377,1716429251237,154.34,0.00021589,30]
[327752378,1716429395847,529.2773117,0.00028,30]
[327752379,1716429825633,154.34,0.00021589,30]
[327752402,1716430156717,1098.9096511,0.00031,120]
[327752411,1716430170906,368.0,0.00031,120]
[327752427,1716430231954,-227.29,0.00013973,2]
[327752428,1716430231964,-155.5,0.00013973,2]
[327752429,1716430231974,-619.11818347,0.00015,2]
[327752430,1716430231984,-155.66471987,0.00015661,2]
[327752431,1716430231994,-211.63,0.00015761,2]
[327752432,1716430232003,-2884.08444967,0.000171,2]
[327752433,1716430232016,-367.67329241,0.000171,2]
[327752434,1716430232027,-1328.24225792,0.000171,2]
[327752435,1716430232037,-1650.34,0.00017337,2]
[327752436,1716430232046,-250.0,0.00017394,2]
[327752437,1716430232056,-250.0,0.00017423,2]
[327752438,1716430232066,-1417.02783087,0.00017597,2]
[327752439,1716430232077,-177.98360576,0.00017597,2]
[327752440,1716430232087,-400.7,0.00017687,2]
[327752441,1716430232096,-1704.19,0.0001777,2]
[327752442,1716430232105,-2757.11490441,0.0001777,2]
[327752443,1716430232117,-1092.92509559,0.0001777,2]
[327752444,1716430232127,-4473.63,0.00017821,2]
[327752445,1716430232136,-500.0,0.000179,2]
[327752446,1716430232146,-12488.2445,0.000179,2]
[327752447,1716430232155,-521.3351,0.000179,2]
[327752448,1716430232165,-1000.0,0.000179,2]
[327752449,1716430232177,-5780.5498,0.000179,2]
[327752450,1716430232186,-181.36313277,0.000179,2]
[327752451,1716430232195,-155.66471987,0.000179,2]
[327752453,1716430232206,-374.44847787,0.000179,2]
[327752455,1716430232215,-258.79435456,0.000179,2]
[327752457,1716430232224,-1454.40636335,0.000179,2]
[327752458,1716430232233,-150.0,0.00017976,2]
[327752459,1716430232242,-185.55843489,0.0001799,2]
[327752460,1716430232251,-603.0,0.00017994,2]
[327752461,1716430232261,-155.09457286,0.00017999,2]
[327752462,1716430232270,-1645.77190641,0.00017999,2]
[327752463,1716430232279,-31759.39994278,0.00018,2]
[327752464,1716430232291,-36874.49649339,0.00018,2]
[327752465,1716430232303,-699.32249596,0.00018,2]
[327752466,1716430232314,-6591.3290706,0.00018,2]
[327752467,1716430232340,-1848.61575999,0.00018,2]
[327752468,1716430232352,-522.90713206,0.00018,2]
[327752469,1716430232363,-266.27999998,0.00018,2]
[327752470,1716430232374,-752.4458828,0.00018,2]
[327752471,1716430232386,-2121.37763752,0.00018,2]
[327752472,1716430232397,-1194.85289494,0.00018,2]
[327752473,1716430232409,-3971.0701764,0.00018,2]
[327752474,1716430232424,-942.08096292,0.00018,2]
[327752477,1716430237867,-995.53945027,0.00018,2]
[327752480,1716430237881,-598.12889179,0.00018,2]
[327752483,1716430238116,-1699.96956865,0.00018,2]
[327752484,1716430238128,-79903.94286294,0.00018,2]
[327752485,1716430238140,-13210.90283042,0.00018,2]
[327752486,1716430238152,-3023.94694917,0.00018,2]
[327752487,1716430238164,-5040.73664175,0.00018,2]
[327752488,1716430238175,-353174.52057474,0.00018,2]
[327752489,1716430238378,-10110.37131396,0.00018,2]
[327752492,1716430238390,-1190.28014679,0.00018,2]
[327752494,1716430238402,-706.35970613,0.00018,2]
[327752496,1716430243218,-2013.71898505,0.00018,2]
[327752497,1716430243233,-2071.75812222,0.00018,2]
[327752498,1716430243250,-792.16022245,0.00018,2]
[327752499,1716430243262,-328.04999985,0.00018,2]
[327752500,1716430243594,-4568.73854886,0.00018,2]
[327752501,1716430243605,-5798.50110075,0.00018,2]
[327752512,1716430303265,154.34,0.00021589,30]
[327752527,1716430814410,154.34,0.00021589,30]
[327752540,1716431271818,457.90189811,0.00031,120]
[327752553,1716431432237,-155.65,0.00013973,2]
[327752554,1716431432247,-1227.44081654,0.0001651,2]
[327752555,1716431432256,-38.10918346,0.00016511,2]
[327752556,1716431432267,-173.74081654,0.00016511,2]
[327752557,1716431432277,-924.94918346,0.000172,2]
[327752558,1716431432289,-3197.05081654,0.000172,2]
[327752559,1716431432298,-4013.94918346,0.000179,2]
[327752560,1716431432309,-608.79,0.000179,2]
[327752561,1716431432320,-361.15,0.000179,2]
[327752562,1716431432332,-453.51,0.000179,2]
[327752564,1716431432464,-277.94262863,0.000179,2]
[327752577,1716431438211,-5154.41667,0.000179,2]
[327752580,1716431438225,-1086.93189934,0.000179,2]
[327752582,1716431438237,-326.12204379,0.000179,2]
[327752584,1716431438248,-627.57621706,0.000179,2]
[327752585,1716431438260,-311.75649,0.000179,2]
[327752586,1716431438272,-1043.17798635,0.000179,2]
[327752587,1716431438284,-4743.89536184,0.000179,2]
[327752588,1716431438500,-2681.43377846,0.000179,2]
[327752589,1716431438513,-260.21525013,0.000179,2]
[327752611,1716431443375,-2135.45502402,0.0001782,2]
[327752612,1716431443388,-10.86364598,0.0001782,2]
[327752613,1716431443397,-914.64230399,0.000179,2]
[327752614,1716431443409,-427.149998,0.000179,2]
[327752615,1716431443421,-1502.81579274,0.000179,2]
[327752616,1716431443432,-1288.61191705,0.000179,2]
[327752617,1716431443445,-344.10978337,0.000179,2]
[327752618,1716431443704,-8136.80152,0.000179,2]
[327752619,1716431443717,-503.99410468,0.000179,2]
[327752620,1716431444408,-1416.08122104,0.000179,2]
[327752621,1716431444420,-6733.02504383,0.000179,2]
[327752622,1716431444432,-1121.2213578,0.000179,2]
[327752623,1716431444444,-914.35207405,0.000179,2]
[327752624,1716431444711,-257.59616578,0.000179,2]
[327752626,1716431444724,-634.3330424,0.000179,2]
[327752627,1716431444741,-1220.75789492,0.000179,2]
[327752633,1716431446380,-2287.15044994,0.000179,2]
[327752634,1716431446392,-5104.40956745,0.000179,2]
[327752635,1716431446404,-278.97054483,0.000179,2]
[327752636,1716431446417,-581.0,0.000179,2]
[327752637,1716431446428,-6750.72008381,0.000179,2]
[327752638,1716431446440,-3461.48272526,0.000179,2]
[327752639,1716431446450,-300.0,0.000179,2]
[327752640,1716431446459,-1272.60556794,0.000179,2]
[327752641,1716431446469,-207.03548364,0.000179,2]
[327752642,1716431446479,-155.62533648,0.00017998,2]
[327752643,1716431446488,-204.6893212,0.00017998,2]
[327752644,1716431446497,-166.97656848,0.00017998,2]
[327752645,1716431446507,-257.50428068,0.00017999,2]
[327752646,1716431446516,-499.99,0.00017999,2]
[327752647,1716431446526,-150.99,0.00017999,2]
[327752648,1716431446535,-10008.53219654,0.00018,2]
[327752649,1716431446548,-10626.67261,0.00018,2]
[327752650,1716431446559,-15244.77312,0.00018,2]
[327752651,1716431446571,-2019.28127731,0.00018,2]
[327752652,1716431446582,-2437.47706605,0.00018,2]
[327752653,1716431446594,-1205.37360897,0.00018,2]
[327752654,1716431446605,-2089.86470127,0.00018,2]
[327752665,1716431725442,-3256147.4015,0.00013,2]
[327752670,1716431814450,2844.22451635,0.00028,30]
[327752681,1716431980927,1113.52987193,0.000129,2]
[327752683,1716432049582,705.15,0.00031,120]
[327752687,1716432261383,974.33863793,0.000129,2]
[327752702,1716432542004,852.54630825,0.000129,2]
[327752716,1716432632519,-15549.14852517,0.00013,2]
[327752717,1716432632530,-1557.21658801,0.00013,2]
[327752718,1716432632542,-1272.24,0.00013,2]
[327752719,1716432632555,-2049.42770371,0.00013,2]
[327752720,1716432632566,-431.18512968,0.00013,2]
[327752736,1716432638319,-1910.62071326,0.00013,2]
[327752738,1716432638331,-2799.3000199,0.00013,2]
[327752740,1716432638343,-366293.08164376,0.00013,2]
[327752742,1716432638353,-433454.02681212,0.00013,2]
[327752743,1716432638362,-290.05791664,0.00013873,2]
[327752744,1716432638372,-229.22,0.00013973,2]
[327752745,1716432638381,-300.57,0.00013973,2]
[327752746,1716432638391,-852.54630818,0.00014471,2]
[327752747,1716432638401,-220.0,0.00014609,2]